bitfinex/quotes_BTCUSD_20250211
["timestamp","ask_amount","ask_price","bid_price","bid_amount"]
[1739287943337,0.15642493,97175.0,97174.0,0.3266]
[1739287943854,0.1544666,97175.0,97174.0,0.3266]
[1739287944087,0.1544666,97175.0,97174.0,0.3306]
[1739287944324,0.1544666,97175.0,97174.0,0.008]
[1739287944528,0.2774666,97175.0,97174.0,0.008]
[1739287944725,0.37997025,97175.0,97174.0,0.008]
[1739287945156,0.37997025,97175.0,97174.0,0.004]
[1739287945556,0.154381,97162.0,97161.0,0.08256914]
[1739287945788,0.22561025,97175.0,97151.0,0.36584071]
[1739287945789,0.205839,97164.0,97151.0,0.36584071]
[1739287945989,0.154383,97161.0,97151.0,0.36584071]
[1739287946229,0.205821,97172.0,97151.0,0.36584071]
[1739287946230,0.154384,97160.0,97151.0,0.36584071]
[1739287946539,0.154378,97164.0,97151.0,0.476998]
[1739287946741,0.154378,97164.0,97151.0,0.3226]
[1739287946949,0.154383,97161.0,97151.0,0.3226]
[1739287948240,0.1434419,97170.0,97151.0,0.3266]
[1739287948451,0.205829,97168.0,97151.0,0.3266]
[1739287948663,0.1434419,97170.0,97151.0,0.3266]
[1739287948840,0.154388,97158.0,97151.0,0.3266]
[1739287949042,0.205845,97161.0,97151.0,0.3266]
[1739287949250,0.154386,97159.0,97151.0,0.3266]
[1739287949808,0.154388,97158.0,97151.0,0.32682386]
[1739287950216,0.154388,97158.0,97151.0,0.32782386]
[1739287950626,0.20576448,97165.0,97151.0,0.32682386]
[1739287950831,0.1434419,97170.0,97151.0,0.32282386]
[1739287951269,0.205845,97161.0,97151.0,0.32782386]
[1739287951674,0.154392,97155.0,97151.0,0.32882386]
[1739287951839,0.205857,97155.0,97151.0,0.32382386]
[1739287952042,0.154395,97154.0,97151.0,0.32382386]
[1739287952312,0.205833,97166.0,97151.0,0.32382386]
[1739287952487,0.154392,97155.0,97151.0,0.32382386]
[1739287953156,0.154397,97152.0,97151.0,0.32382386]
[1739287953487,0.154395,97153.0,97151.0,0.32382386]
[1739287953687,0.205837,97164.0,97151.0,0.32282386]
[1739287953893,0.154397,97152.0,97151.0,0.32282386]
[1739287954128,0.154396,97153.0,97151.0,0.32282386]
[1739287954537,0.154397,97152.0,97151.0,0.32282386]
[1739287955172,0.154397,97152.0,97151.0,0.33282386]
[1739287955593,0.17355435,97152.0,97151.0,0.01022386]
[1739287955814,0.17355435,97152.0,97151.0,0.00322386]
[1739287956017,0.18313097,97152.0,97151.0,0.01222386]
[1739287956195,0.18413097,97152.0,97151.0,0.01222386]
[1739287956840,0.18313097,97152.0,97151.0,0.00022386]
[1739287957249,0.28563462,97152.0,97151.0,0.00022386]
[1739287957797,3.08041462,97152.0,97151.0,0.00022386]
[1739287957972,5.57221462,97152.0,97151.0,0.00022386]
[1739287958531,2.60851462,97152.0,97151.0,0.00022386]
[1739287958943,2.6345186,97152.0,97151.0,0.00022386]
[1739287959150,2.61851462,97152.0,97151.0,0.00022386]
[1739287959385,0.62640431,97152.0,97151.0,0.00022386]
[1739287959615,0.62740431,97152.0,97151.0,0.00022386]
[1739287959833,5.67740431,97152.0,97151.0,0.00022386]
[1739287960273,5.67640431,97152.0,97151.0,0.00022386]
[1739287960488,0.01,97146.0,97127.0,0.03901685]
[1739287960692,0.154435,97128.0,97127.0,0.03901685]
[1739287960891,5.30693865,97128.0,97127.0,0.03901685]
[1739287961008,0.154436,97127.0,97126.0,0.00022365]
[1739287961918,0.26659383,97127.0,97126.0,0.00022365]
[1739287962335,0.34739383,97127.0,97126.0,0.00022365]
[1739287962742,0.26659383,97127.0,97126.0,0.00022365]
[1739287963393,0.15451356,97127.0,97126.0,0.00022365]
[1739287965493,0.16405836,97127.0,97126.0,0.00022365]
[1739287965920,0.18314778,97127.0,97126.0,0.00022365]
[1739287966537,0.18314778,97127.0,97126.0,0.00322365]
[1739287972500,0.16405836,97127.0,97126.0,0.00322365]
[1739287972703,0.205911,97130.0,97126.0,0.00322365]
[1739287972853,0.154436,97127.0,97126.0,0.00335678]
[1739287973732,0.154436,97127.0,97126.0,0.00035678]
[1739287974497,0.1545426,97127.0,97126.0,0.00035678]
[1739287974709,0.25704625,97127.0,97126.0,0.00035678]
[1739287976857,0.25704625,97127.0,97126.0,0.00235678]
[1739287979508,0.27620776,97127.0,97126.0,0.00235678]
[1739287981282,0.50470776,97127.0,97126.0,0.00235678]
[1739287981696,1.00540776,97127.0,97126.0,0.00235678]
[1739287983052,1.01240776,97127.0,97126.0,0.00335678]
[1739287983526,1.05750776,97127.0,97126.0,0.00335678]
[1739287984394,0.154465,97109.0,97108.0,0.00022365]
[1739287984611,0.25696865,97109.0,97108.0,0.00030121]
[1739287985496,0.27613016,97109.0,97108.0,0.00030121]
[1739287985882,0.27713016,97109.0,97108.0,0.00030121]
[1739287986207,0.28673471,97109.0,97108.0,0.00030121]
[1739287986405,0.02976606,97109.0,97108.0,0.00030121]
[1739287986602,0.03076606,97109.0,97108.0,0.07950121]
[1739287987049,0.03076606,97109.0,97108.0,0.23396821]
[1739287987667,0.03076606,97109.0,97108.0,0.55656821]
[1739287988111,0.02976606,97109.0,97108.0,0.68207186]
[1739287988311,0.02876606,97109.0,97108.0,0.68207186]
[1739287988515,0.0001066,97127.0,97126.0,0.154438]
[1739287988732,0.0001066,97127.0,97126.0,0.33614165]
[1739287989571,0.0001066,97127.0,97126.0,0.65774165]
[1739287989980,0.0001066,97127.0,97126.0,0.72754165]
[1739287990186,0.0001066,97127.0,97126.0,1.26884165]
[1739287990998,0.0001066,97127.0,97126.0,1.28902191]
[1739287992299,0.0001066,97127.0,97126.0,1.29302191]
[1739287992630,0.0001066,97127.0,97126.0,1.01408026]
[1739287993022,0.0001066,97127.0,97126.0,1.01808026]
[1739287993397,0.0001066,97127.0,97126.0,1.01408026]
[1739287993811,0.0001066,97127.0,97126.0,1.02408026]
[1739287994013,0.0001066,97127.0,97126.0,1.17851826]
[1739287994895,0.0001066,97127.0,97126.0,0.63721826]
[1739287995095,0.0001066,97127.0,97126.0,0.73972191]
[1739287995487,0.0001066,97127.0,97126.0,0.76272191]
[1739287996758,0.0001066,97127.0,97126.0,1.30402191]
[1739287998254,0.0001066,97127.0,97126.0,1.34559383]
[1739287998435,0.0001066,97127.0,97126.0,1.30424577]
[1739287999945,0.0001066,97127.0,97126.0,1.14980777]
[1739288000089,0.0001066,97127.0,97126.0,1.30424577]
[1739288000903,0.0001066,97127.0,97126.0,0.76294577]
[1739288002050,0.08386056,97146.0,97127.0,0.023]
[1739288002262,0.15441,97144.0,97130.0,0.154431]
[1739288002473,0.1434419,97150.0,97128.0,0.3226]
[1739288002600,0.154424,97136.0,97128.0,0.3226]
[1739288002800,0.154416,97140.0,97128.0,0.3226]
[1739288003002,0.154418,97139.0,97128.0,0.3226]
[1739288003202,0.15,97153.0,97128.0,0.3226]
[1739288003466,0.154409,97145.0,97129.0,0.154432]
[1739288003622,0.155411,97144.0,97129.0,0.154433]
[1739288003822,0.001,97144.0,97130.0,0.154431]
[1739288004074,0.15541,97144.0,97129.0,0.154433]
[1739288004325,0.154411,97143.0,97129.0,0.154433]
[1739288004584,0.001,97144.0,97128.0,0.528513]
[1739288004869,0.154412,97143.0,97128.0,0.477034]
[1739288005100,0.154411,97144.0,97129.0,0.25186747]
[1739288005295,0.2263419,97170.0,97129.0,0.10250365]
[1739288005540,0.154398,97151.0,97136.0,0.154421]
[1739288005757,0.003,97146.0,97131.0,0.205907]
[1739288005978,0.003,97146.0,97133.0,0.023]
[1739288006129,0.003,97146.0,97135.0,0.154424]
[1739288006339,0.15,97163.0,97134.0,0.10250365]
[1739288006543,0.1544,97150.0,97135.0,0.154422]
[1739288006743,0.1544,97150.0,97136.0,0.3226]
[1739288006942,0.1434419,97160.0,97136.0,0.3226]
[1739288007141,0.154409,97145.0,97136.0,0.3226]
[1739288007368,0.1434419,97160.0,97136.0,0.3226]
[1739288007571,0.225827,97169.0,97136.0,0.3226]
[1739288007572,0.1434419,97150.0,97136.0,0.3226]
[1739288007777,0.154419,97139.0,97136.0,0.3226]
[1739288008098,0.154415,97141.0,97136.0,0.3226]
[1739288008314,0.205869,97149.0,97136.0,0.3226]
[1739288008471,0.154411,97143.0,97136.0,0.3226]
[1739288009458,0.154411,97143.0,97136.0,0.3236]
[1739288010233,0.1434419,97150.0,97136.0,0.3236]
[1739288010234,0.3493089,97150.0,97136.0,0.3236]
[1739288010388,0.154418,97139.0,97136.0,0.3256]
[1739288010567,0.154416,97140.0,97136.0,0.3256]
[1739288011374,0.154421,97137.0,97136.0,0.3256]
[1739288011996,0.154421,97137.0,97136.0,0.3246]
[1739288012202,0.154419,97139.0,97136.0,0.3246]
[1739288012417,0.0001066,97149.0,97136.0,0.3256]
[1739288012613,0.154417,97140.0,97136.0,0.3236]
[1739288012823,0.15442,97138.0,97136.0,0.3226]
[1739288013066,0.154416,97141.0,97136.0,0.3226]
[1739288013262,0.154421,97137.0,97136.0,0.3246]
[1739288013644,0.154421,97137.0,97136.0,0.3226]
[1739288014021,0.154421,97137.0,97136.0,0.004]
[1739288016051,0.205888,97140.0,97126.0,0.00022386]
[1739288016261,0.154431,97131.0,97126.0,0.00022386]
[1739288016447,0.205903,97133.0,97126.0,0.00022386]
[1739288016668,0.3493299,97140.0,97126.0,0.00022386]
[1739288016867,0.154433,97130.0,97126.0,0.00022386]
[1739288017220,0.0001066,97149.0,97132.0,0.0774]
[1739288017620,0.15441,97144.0,97132.0,0.0774]
[1739288017834,0.154407,97146.0,97132.0,0.0774]
[1739288018052,0.1501066,97149.0,97132.0,0.231828]
[1739288018249,0.15441,97144.0,97132.0,0.0774]
[1739288018577,0.15441,97144.0,97132.0,0.4]
[1739288018772,0.154408,97145.0,97132.0,0.4]
[1739288019394,0.154411,97143.0,97132.0,0.4]
[1739288019591,0.0001066,97149.0,97132.0,0.4]
[1739288019832,0.154403,97148.0,97132.0,0.4]
[1739288020028,0.0001066,97149.0,97132.0,0.4]
[1739288020235,0.154411,97143.0,97132.0,0.4]
[1739288020708,0.154417,97140.0,97132.0,0.4]
[1739288020912,0.0031066,97149.0,97132.0,0.4]
[1739288021121,0.1434419,97142.0,97132.0,0.3226]
[1739288021337,0.205893,97138.0,97132.0,0.3226]
[1739288021532,0.205893,97138.0,97132.0,0.3236]
[1739288021839,0.154416,97140.0,97132.0,0.3236]
[1739288022473,0.154418,97139.0,97132.0,0.3236]
[1739288022675,0.154416,97141.0,97132.0,0.3236]
[1739288023091,0.2069756,97149.0,97132.0,0.3236]
[1739288023289,0.154408,97146.0,97132.0,0.36372239]
[1739288023483,0.0011066,97149.0,97134.0,0.0462]
[1739288023710,0.0011066,97149.0,97134.0,0.14870365]
[1739288023873,0.0011066,97149.0,97137.0,0.154419]
[1739288024072,0.0011066,97149.0,97136.0,0.205896]
[1739288024278,0.0001066,97149.0,97135.0,0.0822]
[1739288024504,0.0001066,97149.0,97136.0,0.154422]
[1739288024777,0.0001066,97149.0,97135.0,0.0822]
[1739288024981,0.0001066,97149.0,97136.0,0.154422]
[1739288025204,0.0001066,97149.0,97135.0,0.236623]
[1739288025418,0.0001066,97149.0,97136.0,0.154422]
[1739288025581,0.0001066,97149.0,97135.0,0.0822]
[1739288025785,0.0001066,97149.0,97136.0,0.00022386]
[1739288025983,0.1575086,97149.0,97136.0,0.00022386]
[1739288026185,0.0041066,97149.0,97136.0,0.00022386]
[1739288026609,0.0031066,97149.0,97136.0,0.00022386]
[1739288027125,0.0031066,97149.0,97136.0,0.15464586]
[1739288027611,0.0031066,97149.0,97137.0,0.3226]
[1739288027904,0.0001066,97149.0,97137.0,0.3226]
[1739288028460,0.0001066,97149.0,97137.0,0.47702]
[1739288029598,0.0001066,97149.0,97139.0,0.154416]
[1739288029821,0.0001066,97149.0,97137.0,0.3236]
[1739288030024,0.0001066,97149.0,97139.0,0.1434419]
[1739288030230,0.0001066,97149.0,97146.0,0.154406]
[1739288030447,0.0001066,97149.0,97140.0,0.18470365]
[1739288031066,0.0001066,97149.0,97143.0,0.15441]
[1739288031290,0.0001066,97149.0,97140.0,0.18470365]
[1739288031508,0.0001066,97149.0,97143.0,0.154411]
[1739288032765,0.0001066,97149.0,97141.0,0.205886]
[1739288032922,0.0001066,97149.0,97143.0,0.001]
[1739288033487,0.0001066,97149.0,97145.0,0.154407]
[1739288033622,0.0001066,97149.0,97144.0,0.477009]
[1739288034227,0.0001066,97149.0,97144.0,0.3226]
[1739288034830,0.0001066,97149.0,97144.0,0.477009]
[1739288035262,0.0001066,97149.0,97144.0,0.3226]
[1739288037234,0.0001066,97149.0,97145.0,0.001]
[1739288037847,0.154405,97147.0,97145.0,0.001]
[1739288038050,0.154404,97148.0,97145.0,0.001]
[1739288038267,0.154403,97148.0,97145.0,0.001]
[1739288038456,0.0001066,97149.0,97145.0,0.002]
[1739288038644,0.154406,97146.0,97145.0,0.002]
[1739288038850,0.154406,97146.0,97145.0,0.001]
[1739288039056,0.0001066,97149.0,97144.0,0.3226]
[1739288039195,0.154408,97145.0,97144.0,0.3226]
[1739288039556,0.154407,97146.0,97144.0,0.3236]
[1739288040396,0.0001066,97149.0,97144.0,0.3236]
[1739288040511,0.154405,97148.0,97144.0,0.3226]
[1739288040729,0.0001066,97149.0,97145.0,0.001]
[1739288041135,0.0001066,97149.0,97144.0,0.3266]
[1739288041590,0.205872,97148.0,97144.0,0.3266]
[1739288041729,0.154408,97145.0,97144.0,0.3276]
[1739288041933,0.154406,97147.0,97144.0,0.3276]
[1739288042149,0.154403,97148.0,97144.0,0.3266]
[1739288042449,0.0001066,97149.0,97144.0,0.3276]
[1739288042583,0.154406,97146.0,97144.0,0.3276]
[1739288042790,0.154405,97147.0,97144.0,0.3276]
[1739288043506,0.0001066,97149.0,97144.0,0.3236]
[1739288044032,0.0001066,97149.0,97144.0,0.3256]
[1739288044170,0.154404,97148.0,97144.0,0.3256]
[1739288044368,0.1545086,97149.0,97144.0,0.3236]
[1739288044812,0.0001066,97149.0,97144.0,0.3236]
[1739288045249,0.0011066,97149.0,97144.0,0.3236]
[1739288045577,0.154378,97164.0,97146.0,0.154406]
[1739288045711,0.154382,97162.0,97146.0,0.154406]
[1739288045913,0.154382,97162.0,97145.0,0.275308]
[1739288046149,0.00013312,97163.0,97145.0,0.1209]
[1739288046364,0.15451312,97163.0,97146.0,0.154406]
[1739288046700,0.00013312,97163.0,97145.0,0.1209]
[1739288046889,0.154381,97162.0,97145.0,0.275307]
[1739288047093,0.154381,97162.0,97145.0,0.1209]
[1739288047094,0.205841,97162.0,97145.0,0.1209]
[1739288047215,0.154382,97161.0,97145.0,0.1209]
[1739288047829,0.001,97149.0,97145.0,0.1209]
[1739288048580,0.001,97149.0,97145.0,0.275306]
[1739288048786,0.154382,97162.0,97145.0,0.275306]
[1739288049537,0.154384,97160.0,97145.0,0.1209]
[1739288049742,0.154384,97161.0,97145.0,0.1209]
[1739288050597,0.154384,97161.0,97145.0,0.1219]
[1739288051410,0.154384,97161.0,97146.0,0.3226]
[1739288051614,0.00023972,97163.0,97146.0,0.3226]
[1739288051884,0.154387,97159.0,97146.0,0.3226]
[1739288052082,0.205843,97162.0,97146.0,0.3226]
[1739288052083,0.154381,97162.0,97146.0,0.477005]
[1739288052454,0.154381,97162.0,97146.0,0.3226]
[1739288052659,0.154383,97161.0,97146.0,0.3226]
[1739288053394,0.20607972,97163.0,97146.0,0.3226]
[1739288053594,0.154383,97161.0,97146.0,0.3226]
[1739288054535,0.00023972,97163.0,97146.0,0.3226]
[1739288054681,0.00023972,97163.0,97146.0,0.3236]
[1739288054885,0.00023972,97163.0,97147.0,0.205873]
[1739288055303,0.00023972,97163.0,97148.0,0.154403]
[1739288055683,0.00023972,97163.0,97146.0,0.3226]
[1739288055883,0.00123972,97163.0,97147.0,0.154404]
[1739288056132,0.00123972,97163.0,97146.0,0.3226]
[1739288056384,0.154382,97162.0,97146.0,0.477006]
[1739288057767,0.15561972,97163.0,97147.0,0.154405]
[1739288058304,0.20585,97159.0,97146.0,0.3226]
[1739288058502,0.15439,97157.0,97146.0,0.3226]
[1739288058735,0.154385,97160.0,97146.0,0.3226]
[1739288059134,0.205845,97161.0,97146.0,0.3226]
[1739288059335,0.00123972,97163.0,97146.0,0.3226]
[1739288059507,0.1434419,97160.0,97146.0,0.3226]
[1739288059717,0.154394,97154.0,97146.0,0.3236]
[1739288060150,0.154405,97147.0,97146.0,0.3236]
[1739288060574,0.154405,97147.0,97146.0,0.001]
[1739288061214,0.0494,97154.0,97144.0,0.00022386]
[1739288061420,0.154408,97145.0,97144.0,0.00022386]
[1739288063400,0.001,97147.0,97144.0,0.00322386]
[1739288063906,0.154407,97146.0,97144.0,0.00322386]
[1739288064324,0.001,97145.0,97144.0,0.33382386]
[1739288064531,0.001,97145.0,97144.0,0.6621189]
[1739288064728,0.09184344,97168.0,97162.0,0.154381]
[1739288064933,0.09184344,97168.0,97162.0,0.22670365]
[1739288065231,0.09184344,97168.0,97162.0,0.38108465]
[1739288065861,0.0002,97189.0,97162.0,0.22670365]
[1739288066007,7.303e-05,97166.0,97163.0,0.528439]
[1739288066193,7.303e-05,97166.0,97165.0,0.154376]
[1739288066912,7.303e-05,97166.0,97164.0,0.205837]
[1739288067119,7.303e-05,97166.0,97165.0,0.154376]
[1739288067512,7.303e-05,97166.0,97163.0,0.3226]
[1739288067723,7.303e-05,97166.0,97164.0,0.154378]
[1739288068285,7.303e-05,97166.0,97163.0,0.3226]
[1739288068937,7.303e-05,97166.0,97164.0,0.154378]
[1739288069148,7.303e-05,97166.0,97165.0,0.154376]
[1739288069731,7.303e-05,97166.0,97165.0,0.158376]
[1739288070542,7.303e-05,97166.0,97163.0,0.476978]
[1739288070747,7.303e-05,97166.0,97163.0,0.3226]
[1739288071603,7.303e-05,97166.0,97165.0,0.004]
[1739288072202,7.303e-05,97166.0,97165.0,0.3266]
[1739288072831,7.303e-05,97166.0,97165.0,0.3376]
[1739288073559,7.303e-05,97166.0,97165.0,0.3336]
[1739288074325,7.303e-05,97166.0,97165.0,0.011]
[1739288074940,0.15444703,97166.0,97165.0,0.01122365]
[1739288075158,0.15444703,97166.0,97165.0,0.01522365]
[1739288075298,0.15444703,97166.0,97165.0,0.01122365]
[1739288075494,7.303e-05,97166.0,97165.0,0.01122365]
[1739288076130,7.303e-05,97166.0,97165.0,0.00022365]
[1739288076682,7.303e-05,97166.0,97165.0,0.00522365]
[1739288077611,7.303e-05,97166.0,97165.0,0.00822365]
[1739288079349,0.15444703,97166.0,97165.0,0.00822365]
[1739288080377,0.205823,97171.0,97165.0,0.00822365]
[1739288080580,0.154374,97166.0,97165.0,0.00822365]
[1739288081406,0.154373,97167.0,97165.0,0.00322365]
[1739288081608,0.154374,97166.0,97165.0,0.00322365]
[1739288082165,0.154374,97166.0,97165.0,0.00722365]
[1739288083386,0.235574,97166.0,97165.0,0.00722365]
[1739288083793,0.48807765,97166.0,97165.0,0.00722365]
[1739288084003,0.53727765,97166.0,97165.0,0.00722365]
[1739288084206,5.58727765,97166.0,97165.0,0.00322365]
[1739288084585,5.58727765,97166.0,97165.0,0.01122365]
[1739288085355,5.65692341,97166.0,97165.0,0.00322365]
[1739288085670,5.65692341,97166.0,97138.0,0.04001664]
[1739288085671,0.154417,97139.0,97138.0,0.04001664]
[1739288085812,0.25692065,97139.0,97138.0,0.04008967]
[1739288086023,0.25692065,97139.0,97138.0,7.303e-05]
[1739288087935,0.154417,97139.0,97138.0,7.303e-05]
[1739288088355,0.15,97149.0,97138.0,7.303e-05]
[1739288088584,0.154417,97139.0,97138.0,0.00029668]
[1739288089000,0.154417,97139.0,97138.0,0.00229668]
[1739288089398,0.154417,97139.0,97138.0,0.00729668]
[1739288090551,0.154417,97139.0,97138.0,0.00929668]
[1739288091623,0.154417,97139.0,97138.0,0.00229668]
[1739288092043,0.154417,97139.0,97138.0,0.00129668]
[1739288094056,0.10250365,97148.0,97138.0,0.00129668]
[1739288094057,0.154414,97142.0,97138.0,0.00129668]
[1739288094511,0.1434419,97160.0,97138.0,0.00129668]
[1739288094656,0.15441,97144.0,97138.0,0.00129668]
[1739288094860,0.205875,97147.0,97138.0,0.00129668]
[1739288095101,0.15441,97144.0,97138.0,0.00129668]
[1739288095257,0.15,97156.0,97138.0,0.00129668]
[1739288095456,0.1612,97155.0,97138.0,0.00129668]
[1739288095682,0.154402,97149.0,97138.0,0.00029668]
[1739288096126,0.001,97142.0,97138.0,0.00029668]
[1739288096709,0.154403,97148.0,97138.0,0.00029668]
[1739288096907,0.15,97159.0,97138.0,0.00029668]
[1739288097129,0.154408,97146.0,97138.0,0.00029668]
[1739288097339,0.001,97142.0,97138.0,0.00029668]
[1739288098145,0.15441,97144.0,97138.0,0.00029668]
[1739288098554,0.205874,97147.0,97138.0,0.00029668]
[1739288098706,0.154414,97142.0,97138.0,0.00029668]
[1739288099114,0.154417,97139.0,97138.0,0.00029668]
[1739288102930,0.205888,97141.0,97138.0,0.00029668]
[1739288102931,0.154416,97140.0,97138.0,0.00029668]
[1739288103142,0.154417,97139.0,97138.0,0.00129668]
[1739288103579,0.154417,97139.0,97138.0,0.00029668]
[1739288104635,0.07084983,97141.0,97138.0,0.00129668]
[1739288104842,0.15,97147.0,97138.0,0.00129668]
[1739288105001,0.25250365,97147.0,97138.0,0.00129668]
[1739288105202,0.15,97145.0,97138.0,0.00029668]
[1739288105411,0.0001066,97149.0,97140.0,0.08256914]
[1739288105610,0.0001066,97149.0,97144.0,0.154409]
[1739288105833,0.0001066,97149.0,97141.0,0.154413]
[1739288106035,0.0001066,97149.0,97139.0,0.234617]
[1739288106229,0.0001066,97149.0,97139.0,0.0802]
[1739288106564,0.0001066,97149.0,97142.0,0.154412]
[1739288106740,0.0001066,97149.0,97140.0,0.154414]
[1739288107145,0.0001066,97149.0,97141.0,0.154414]
[1739288107900,0.002,97147.0,97141.0,0.154414]
[1739288108245,0.002,97147.0,97139.0,0.0802]
[1739288108656,0.0001066,97149.0,97139.0,0.0802]
[1739288109094,0.0001066,97149.0,97142.0,0.154413]
[1739288109496,0.0001066,97149.0,97141.0,0.005]
[1739288109818,0.0001066,97149.0,97142.0,0.205884]
[1739288109986,0.0001066,97149.0,97145.0,0.154407]
[1739288110171,0.0001066,97149.0,97142.0,0.205884]
[1739288110172,0.0001066,97149.0,97144.0,0.154409]
[1739288110374,0.0001066,97149.0,97141.0,0.001]
[1739288110732,0.0001066,97149.0,97143.0,0.154411]
[1739288110961,0.0001066,97149.0,97142.0,0.3226]
[1739288111132,0.0001066,97149.0,97143.0,0.15441]
[1739288111691,0.0001066,97149.0,97142.0,0.3226]
[1739288112669,0.0001066,97149.0,97143.0,0.001]
[1739288113041,0.0001066,97149.0,97142.0,0.3266]
[1739288113431,0.0001066,97149.0,97148.0,0.154403]
[1739288114288,0.0001066,97149.0,97148.0,0.558903]
[1739288115431,0.0001066,97149.0,97148.0,0.559903]
[1739288116233,0.0001066,97149.0,97148.0,0.4055]
[1739288117074,0.0001066,97149.0,97148.0,0.4095]
[1739288117281,0.0001066,97149.0,97148.0,0.3276]
[1739288120791,0.22556952,97203.0,97148.0,0.3276]
[1739288120998,0.205829,97168.0,97148.0,0.3276]
[1739288121201,0.10250365,97167.0,97148.0,0.3276]
[1739288121402,0.154395,97154.0,97148.0,0.3276]
[1739288121789,0.205855,97156.0,97148.0,0.3276]
[1739288121790,0.154392,97155.0,97148.0,0.3276]
[1739288122021,0.205833,97166.0,97148.0,0.3266]
[1739288122224,0.14922023,97156.0,97148.0,0.3266]
[1739288122709,0.154398,97152.0,97148.0,0.3266]
[1739288122931,0.154402,97149.0,97148.0,0.3266]
[1739288123163,0.154402,97149.0,97148.0,0.004]
[1739288123700,0.154409,97145.0,97138.0,0.00029668]
[1739288123939,0.154407,97146.0,97138.0,0.00029668]
[1739288124116,0.205864,97152.0,97138.0,0.00029668]
[1739288124326,0.205848,97159.0,97138.0,0.00029668]
[1739288124327,0.154405,97147.0,97138.0,0.00029668]
[1739288124531,0.205865,97151.0,97138.0,0.00029668]
[1739288124777,0.0795,97161.0,97138.0,0.00029668]
[1739288124910,0.15441,97144.0,97138.0,0.00029668]
[1739288125961,0.154409,97145.0,97138.0,0.00029668]
[1739288126223,0.10250365,97159.0,97138.0,0.00029668]
[1739288126380,0.30835165,97159.0,97138.0,0.00029668]
[1739288126580,0.10250365,97159.0,97138.0,0.00029668]
[1739288126784,0.0001066,97149.0,97138.0,0.00029668]
[1739288127817,0.154404,97148.0,97138.0,0.00029668]
[1739288128433,0.154404,97148.0,97138.0,0.00129668]
[1739288128981,0.154407,97146.0,97138.0,0.00029668]
[1739288129295,0.154405,97147.0,97138.0,0.00029668]
[1739288129511,0.205871,97148.0,97138.0,0.00029668]
[1739288129716,0.0001066,97149.0,97138.0,0.00029668]
[1739288130112,0.1545086,97149.0,97138.0,0.00029668]
[1739288130318,0.0001066,97149.0,97138.0,0.00029668]
[1739288130763,0.1545086,97149.0,97138.0,0.00029668]
[1739288130963,0.0001066,97149.0,97138.0,0.00329668]
[1739288131163,0.154404,97148.0,97138.0,0.00329668]
[1739288131739,0.0001066,97149.0,97138.0,0.00329668]
[1739288131945,0.154405,97148.0,97138.0,0.00329668]
[1739288132152,0.0001066,97149.0,97138.0,0.00329668]
[1739288132153,0.154405,97147.0,97138.0,0.00329668]
[1739288132355,0.205871,97148.0,97138.0,0.00029668]
[1739288132552,0.154408,97146.0,97138.0,0.00329668]
[1739288132945,0.0001066,97149.0,97138.0,0.00329668]
[1739288134223,0.0001066,97149.0,97138.0,0.00029668]
[1739288134438,0.0001066,97149.0,97139.0,0.3226]
[1739288138230,0.0001066,97149.0,97139.0,0.3256]
[1739288138433,0.0001066,97149.0,97139.0,0.003]
[1739288138917,0.154409,97145.0,97139.0,0.003]
[1739288139270,0.0001066,97149.0,97139.0,0.003]
[1739288139271,0.15441,97144.0,97139.0,0.003]
[1739288139712,0.154411,97144.0,97139.0,0.003]
[1739288140066,0.0001066,97149.0,97138.0,0.00029668]
[1739288140456,0.205871,97148.0,97138.0,0.00029668]
[1739288140772,0.15441,97144.0,97138.0,0.00029668]
[1739288140992,0.205873,97147.0,97138.0,0.00029668]
[1739288141197,0.154412,97143.0,97138.0,0.00029668]
[1739288141400,0.154417,97139.0,97138.0,0.00029668]
[1739288141759,0.205879,97145.0,97139.0,0.005]
[1739288141980,0.154416,97140.0,97139.0,0.005]
[1739288142383,0.154417,97139.0,97138.0,0.00029668]
[1739288142786,0.154417,97139.0,97138.0,0.00329668]
[1739288143124,0.0001066,97149.0,97138.0,0.00329668]
[1739288143263,0.154417,97140.0,97138.0,0.00329668]
[1739288143468,0.154413,97142.0,97138.0,0.00329668]
[1739288143664,0.154417,97139.0,97138.0,0.00029668]
[1739288146122,0.154417,97139.0,97138.0,0.00329668]
[1739288147140,0.154417,97139.0,97138.0,0.00029668]
[1739288147551,0.154417,97139.0,97138.0,0.00229668]
[1739288148081,0.40692065,97139.0,97138.0,0.00229668]
[1739288148263,0.10250365,97139.0,97138.0,0.00229668]
[1739288148475,0.33402065,97139.0,97138.0,0.00229668]
[1739288148711,5.38402065,97139.0,97138.0,0.00229668]
[1739288149881,2.93042065,97139.0,97138.0,0.00029668]
[1739288150097,0.85172065,97139.0,97138.0,0.00029668]
[1739288150312,0.25692065,97139.0,97138.0,0.00029668]
[1739288150459,0.25692065,97139.0,97122.0,0.0788]
[1739288150460,0.15,97138.0,97122.0,0.03554439]
[1739288150679,0.154448,97120.0,97118.0,0.0491]
[1739288151524,0.154446,97121.0,97118.0,0.0491]
[1739288151726,0.205911,97130.0,97118.0,0.0491]
[1739288151978,0.205905,97132.0,97118.0,0.0491]
[1739288152149,0.154443,97123.0,97118.0,0.0491]
[1739288152340,0.205905,97132.0,97118.0,0.0491]
[1739288152542,0.154445,97122.0,97118.0,0.0491]
[1739288152871,0.154446,97121.0,97118.0,0.0491]
[1739288153065,0.154445,97122.0,97118.0,0.0491]
[1739288153366,0.154443,97123.0,97118.0,0.0491]
[1739288153594,0.205899,97135.0,97118.0,0.1279]
[1739288153774,0.205881,97144.0,97120.0,0.1434419]
[1739288154020,0.0001066,97156.0,97131.0,0.0788]
[1739288154232,4.563e-05,97139.0,97131.0,0.0788]
[1739288154644,4.563e-05,97139.0,97131.0,0.0778]
[1739288154830,0.15442,97138.0,97131.0,0.0778]
[1739288155025,0.003,97135.0,97131.0,0.0778]
[1739288155926,0.154426,97134.0,97131.0,0.0778]
[1739288156110,0.154426,97134.0,97120.0,0.5423]
[1739288156313,0.003,97135.0,97120.0,0.5423]
[1739288156514,0.157424,97135.0,97120.0,0.696746]
[1739288156738,0.157424,97135.0,97121.0,0.154446]
[1739288157137,0.154422,97136.0,97122.0,0.154444]